{"text_format":"1","workbook":"xlsx","n_sheets":2,"sheets":["save","data"],"not_rendered":{"charts":0,"images":0,"macros":1,"external_links":0,"defined_names":32,"comments":0,"pivot_tables":0},"unopened":[],"bounds":{"document_bytes":16777216,"sheet_cells":100000,"rows_first":2000,"rows_last":500,"rows_between":2000,"halvings":0,"cell_chars":16384,"cell_head_chars":4096},"cells_cut":0,"cells_raw":0,"read":"whole","date_system":"1900"}

{"sheet":"save","index":0,"n_rows":2,"n_cols":317,"rows_kept":2,"cut":false,"hidden":false,"merged":[[0,14,0,16],[0,0,0,1],[0,4,0,5],[0,6,0,7],[0,8,0,10],[0,11,0,13]]}
[44339.490944560188,null,"عدد غرف الفندق",300,"عدد الاسرة",null,3000,null,{"$f":"NOW()","v":"2021-06-10T15:04:07.420"},null,null,"بلان",null,null,{"$f":"NOW()","v":"2021-06-10T15:04:07.420"}]
["م","رقم الحجز\nالفاتورة","اسم الشركة\nاسم النزيل","اسم المندوب الشركة\nاسم المرافق ( افراد )","الجنسية","رقم الشركة\nرقم هوية النزيل","نوع الحجز\nافراد-شركة","اسم المسؤل عن الحجز","تاريخ الدخول","تاريخ الخروج","السعر\nللنزيل","عدد\nالغرف","عدد\nالاسرة","عدد\nالليالي","الاجمالي\nللنزيل","اسم الشركة مختصر","الايام","رقم الغرفة","رقم الغرفة","رقم الغرفة","رقم الغرفة","رقم الغرفة","رقم الغرفة","رقم الغرفة","رقم الغرفة","رقم الغرفة","رقم الغرفة","رقم الغرفة","رقم الغرفة","رقم الغرفة","رقم الغرفة","رقم الغرفة","رقم الغرفة","رقم الغرفة","رقم الغرفة","رقم الغرفة","رقم الغرفة","رقم الغرفة","رقم الغرفة","رقم الغرفة","رقم الغرفة","رقم الغرفة","رقم الغرفة","رقم الغرفة","رقم الغرفة","رقم الغرفة","رقم الغرفة","رقم الغرفة","رقم الغرفة","رقم الغرفة","رقم الغرفة","رقم الغرفة","رقم الغرفة","رقم الغرفة","رقم الغرفة","رقم الغرفة","رقم الغرفة","رقم الغرفة","رقم الغرفة","رقم الغرفة","رقم الغرفة","رقم الغرفة","رقم الغرفة","رقم الغرفة","رقم الغرفة","رقم الغرفة","رقم الغرفة","رقم الغرفة","رقم الغرفة","رقم الغرفة","رقم الغرفة","رقم الغرفة","رقم الغرفة","رقم الغرفة","رقم الغرفة","رقم الغرفة","رقم الغرفة","رقم الغرفة","رقم الغرفة","رقم الغرفة","رقم الغرفة","رقم الغرفة","رقم الغرفة","رقم الغرفة","رقم الغرفة","رقم الغرفة","رقم الغرفة","رقم الغرفة","رقم الغرفة","رقم الغرفة","رقم الغرفة","رقم الغرفة","رقم الغرفة","رقم الغرفة","رقم الغرفة","رقم الغرفة","رقم الغرفة","رقم الغرفة","رقم الغرفة","رقم الغرفة","رقم الغرفة","رقم الغرفة","رقم الغرفة","رقم الغرفة","رقم الغرفة","رقم الغرفة","رقم الغرفة","رقم الغرفة","رقم الغرفة","رقم الغرفة","رقم الغرفة","رقم الغرفة","رقم الغرفة","رقم الغرفة","رقم الغرفة","رقم الغرفة","رقم الغرفة","رقم الغرفة","رقم الغرفة","رقم الغرفة","رقم الغرفة","رقم الغرفة","رقم الغرفة","رقم الغرفة","رقم الغرفة","رقم الغرفة","رقم الغرفة","رقم الغرفة","رقم الغرفة","رقم الغرفة","رقم الغرفة","رقم الغرفة","رقم الغرفة","رقم الغرفة","رقم الغرفة","رقم الغرفة","رقم الغرفة","رقم الغرفة","رقم الغرفة","رقم الغرفة","رقم الغرفة","رقم الغرفة","رقم الغرفة","رقم الغرفة","رقم الغرفة","رقم الغرفة","رقم الغرفة","رقم الغرفة","رقم الغرفة","رقم الغرفة","رقم الغرفة","رقم الغرفة","رقم الغرفة","رقم الغرفة","رقم الغرفة","رقم الغرفة","رقم الغرفة","رقم الغرفة","رقم الغرفة","رقم الغرفة","رقم الغرفة","رقم الغرفة","رقم الغرفة","رقم الغرفة","رقم الغرفة","رقم الغرفة","رقم الغرفة","رقم الغرفة","رقم الغرفة","رقم الغرفة","رقم الغرفة","رقم الغرفة","رقم الغرفة","رقم الغرفة","رقم الغرفة","رقم الغرفة","رقم الغرفة","رقم الغرفة","رقم الغرفة","رقم الغرفة","رقم الغرفة","رقم الغرفة","رقم الغرفة","رقم الغرفة","رقم الغرفة","رقم الغرفة","رقم الغرفة","رقم الغرفة","رقم الغرفة","رقم الغرفة","رقم الغرفة","رقم الغرفة","رقم الغرفة","رقم الغرفة","رقم الغرفة","رقم الغرفة","رقم الغرفة","رقم الغرفة","رقم الغرفة","رقم الغرفة","رقم الغرفة","رقم الغرفة","رقم الغرفة","رقم الغرفة","رقم الغرفة","رقم الغرفة","رقم الغرفة","رقم الغرفة","رقم الغرفة","رقم الغرفة","رقم الغرفة","رقم الغرفة","رقم الغرفة","رقم الغرفة","رقم الغرفة","رقم الغرفة","رقم الغرفة","رقم الغرفة","رقم الغرفة","رقم الغرفة","رقم الغرفة","رقم الغرفة","رقم الغرفة","رقم الغرفة","رقم الغرفة","رقم الغرفة","رقم الغرفة","رقم الغرفة","رقم الغرفة","رقم الغرفة","رقم الغرفة","رقم الغرفة","رقم الغرفة","رقم الغرفة","رقم الغرفة","رقم الغرفة","رقم الغرفة","رقم الغرفة","رقم الغرفة","رقم الغرفة","رقم الغرفة","رقم الغرفة","رقم الغرفة","رقم الغرفة","رقم الغرفة","رقم الغرفة","رقم الغرفة","رقم الغرفة","رقم الغرفة","رقم الغرفة","رقم الغرفة","رقم الغرفة","رقم الغرفة","رقم الغرفة","رقم الغرفة","رقم الغرفة","رقم الغرفة","رقم الغرفة","رقم الغرفة","رقم الغرفة","رقم الغرفة","رقم الغرفة","رقم الغرفة","رقم الغرفة","رقم الغرفة","رقم الغرفة","رقم الغرفة","رقم الغرفة","رقم الغرفة","رقم الغرفة","رقم الغرفة","رقم الغرفة","رقم الغرفة","رقم الغرفة","رقم الغرفة","رقم الغرفة","رقم الغرفة","رقم الغرفة","رقم الغرفة","رقم الغرفة","رقم الغرفة","رقم الغرفة","رقم الغرفة","رقم الغرفة","رقم الغرفة","رقم الغرفة","رقم الغرفة","رقم الغرفة","رقم الغرفة","رقم الغرفة","رقم الغرفة","رقم الغرفة","رقم الغرفة","رقم الغرفة","رقم الغرفة","رقم الغرفة","رقم الغرفة","رقم الغرفة","رقم الغرفة","رقم الغرفة","رقم الغرفة","رقم الغرفة","رقم الغرفة","رقم الغرفة","رقم الغرفة","رقم الغرفة","رقم الغرفة","رقم الغرفة","رقم الغرفة","رقم الغرفة","رقم الغرفة","رقم الغرفة","رقم الغرفة","رقم الغرفة","رقم الغرفة","رقم الغرفة","رقم الغرفة"]

{"sheet":"data","index":1,"n_rows":19,"n_cols":317,"rows_kept":19,"cut":false,"hidden":false,"merged":[[0,0,0,1],[0,4,0,5],[0,6,0,7],[0,14,0,16],[0,8,0,10],[0,11,0,13]]}
[44339.490944560188,null,"عدد غرف الفندق",300,"عدد الاسرة",null,3000,null,{"$f":"NOW()","v":"2021-06-10T15:04:07.420"},null,null,"بلان",null,null,{"$f":"NOW()","v":"2021-06-10T15:04:07.420"}]
["م","رقم الحجز\nالفاتورة","اسم الشركة\nاسم النزيل","اسم المندوب الشركة\nاسم المرافق ( افراد )","الجنسية","رقم الشركة\nرقم هوية النزيل","نوع الحجز\nافراد-شركة","اسم المسؤل عن الحجز","تاريخ الدخول","تاريخ الخروج","السعر\nللنزيل","عدد\nالغرف","عدد\nالاسرة","عدد\nالليالي","الاجمالي\nللنزيل","اسم الشركة مختصر","الايام","رقم الغرفة","رقم الغرفة","رقم الغرفة","رقم الغرفة","رقم الغرفة","رقم الغرفة","رقم الغرفة","رقم الغرفة","رقم الغرفة","رقم الغرفة","رقم الغرفة","رقم الغرفة","رقم الغرفة","رقم الغرفة","رقم الغرفة","رقم الغرفة","رقم الغرفة","رقم الغرفة","رقم الغرفة","رقم الغرفة","رقم الغرفة","رقم الغرفة","رقم الغرفة","رقم الغرفة","رقم الغرفة","رقم الغرفة","رقم الغرفة","رقم الغرفة","رقم الغرفة","رقم الغرفة","رقم الغرفة","رقم الغرفة","رقم الغرفة","رقم الغرفة","رقم الغرفة","رقم الغرفة","رقم الغرفة","رقم الغرفة","رقم الغرفة","رقم الغرفة","رقم الغرفة","رقم الغرفة","رقم الغرفة","رقم الغرفة","رقم الغرفة","رقم الغرفة","رقم الغرفة","رقم الغرفة","رقم الغرفة","رقم الغرفة","رقم الغرفة","رقم الغرفة","رقم الغرفة","رقم الغرفة","رقم الغرفة","رقم الغرفة","رقم الغرفة","رقم الغرفة","رقم الغرفة","رقم الغرفة","رقم الغرفة","رقم الغرفة","رقم الغرفة","رقم الغرفة","رقم الغرفة","رقم الغرفة","رقم الغرفة","رقم الغرفة","رقم الغرفة","رقم الغرفة","رقم الغرفة","رقم الغرفة","رقم الغرفة","رقم الغرفة","رقم الغرفة","رقم الغرفة","رقم الغرفة","رقم الغرفة","رقم الغرفة","رقم الغرفة","رقم الغرفة","رقم الغرفة","رقم الغرفة","رقم الغرفة","رقم الغرفة","رقم الغرفة","رقم الغرفة","رقم الغرفة","رقم الغرفة","رقم الغرفة","رقم الغرفة","رقم الغرفة","رقم الغرفة","رقم الغرفة","رقم الغرفة","رقم الغرفة","رقم الغرفة","رقم الغرفة","رقم الغرفة","رقم الغرفة","رقم الغرفة","رقم الغرفة","رقم الغرفة","رقم الغرفة","رقم الغرفة","رقم الغرفة","رقم الغرفة","رقم الغرفة","رقم الغرفة","رقم الغرفة","رقم الغرفة","رقم الغرفة","رقم الغرفة","رقم الغرفة","رقم الغرفة","رقم الغرفة","رقم الغرفة","رقم الغرفة","رقم الغرفة","رقم الغرفة","رقم الغرفة","رقم الغرفة","رقم الغرفة","رقم الغرفة","رقم الغرفة","رقم الغرفة","رقم الغرفة","رقم الغرفة","رقم الغرفة","رقم الغرفة","رقم الغرفة","رقم الغرفة","رقم الغرفة","رقم الغرفة","رقم الغرفة","رقم الغرفة","رقم الغرفة","رقم الغرفة","رقم الغرفة","رقم الغرفة","رقم الغرفة","رقم الغرفة","رقم الغرفة","رقم الغرفة","رقم الغرفة","رقم الغرفة","رقم الغرفة","رقم الغرفة","رقم الغرفة","رقم الغرفة","رقم الغرفة","رقم الغرفة","رقم الغرفة","رقم الغرفة","رقم الغرفة","رقم الغرفة","رقم الغرفة","رقم الغرفة","رقم الغرفة","رقم الغرفة","رقم الغرفة","رقم الغرفة","رقم الغرفة","رقم الغرفة","رقم الغرفة","رقم الغرفة","رقم الغرفة","رقم الغرفة","رقم الغرفة","رقم الغرفة","رقم الغرفة","رقم الغرفة","رقم الغرفة","رقم الغرفة","رقم الغرفة","رقم الغرفة","رقم الغرفة","رقم الغرفة","رقم الغرفة","رقم الغرفة","رقم الغرفة","رقم الغرفة","رقم الغرفة","رقم الغرفة","رقم الغرفة","رقم الغرفة","رقم الغرفة","رقم الغرفة","رقم الغرفة","رقم الغرفة","رقم الغرفة","رقم الغرفة","رقم الغرفة","رقم الغرفة","رقم الغرفة","رقم الغرفة","رقم الغرفة","رقم الغرفة","رقم الغرفة","رقم الغرفة","رقم الغرفة","رقم الغرفة","رقم الغرفة","رقم الغرفة","رقم الغرفة","رقم الغرفة","رقم الغرفة","رقم الغرفة","رقم الغرفة","رقم الغرفة","رقم الغرفة","رقم الغرفة","رقم الغرفة","رقم الغرفة","رقم الغرفة","رقم الغرفة","رقم الغرفة","رقم الغرفة","رقم الغرفة","رقم الغرفة","رقم الغرفة","رقم الغرفة","رقم الغرفة","رقم الغرفة","رقم الغرفة","رقم الغرفة","رقم الغرفة","رقم الغرفة","رقم الغرفة","رقم الغرفة","رقم الغرفة","رقم الغرفة","رقم الغرفة","رقم الغرفة","رقم الغرفة","رقم الغرفة","رقم الغرفة","رقم الغرفة","رقم الغرفة","رقم الغرفة","رقم الغرفة","رقم الغرفة","رقم الغرفة","رقم الغرفة","رقم الغرفة","رقم الغرفة","رقم الغرفة","رقم الغرفة","رقم الغرفة","رقم الغرفة","رقم الغرفة","رقم الغرفة","رقم الغرفة","رقم الغرفة","رقم الغرفة","رقم الغرفة","رقم الغرفة","رقم الغرفة","رقم الغرفة","رقم الغرفة","رقم الغرفة","رقم الغرفة","رقم الغرفة","رقم الغرفة","رقم الغرفة","رقم الغرفة","رقم الغرفة","رقم الغرفة","رقم الغرفة","رقم الغرفة","رقم الغرفة","رقم الغرفة","رقم الغرفة","رقم الغرفة","رقم الغرفة","رقم الغرفة","رقم الغرفة","رقم الغرفة","رقم الغرفة","رقم الغرفة","رقم الغرفة","رقم الغرفة","رقم الغرفة","رقم الغرفة","رقم الغرفة","رقم الغرفة","رقم الغرفة","رقم الغرفة","رقم الغرفة","رقم الغرفة","رقم الغرفة","رقم الغرفة","رقم الغرفة","رقم الغرفة","رقم الغرفة","رقم الغرفة","رقم الغرفة","رقم الغرفة","رقم الغرفة","رقم الغرفة"]
[1,15,"شركة الاوائل","محمد 1","مصري",152365987125,"شركة","نهاري","2021-06-01","2021-06-08",100,{"$f":"COUNT(R3:LE3)","v":8},{"$f":"IFERROR($G$1/$D$1*L3,\"0\")","v":80},{"$f":"J3-I3","v":7},{"$f":"IFERROR(K3*L3*N3,\"شركة\")","v":5600},{"$f":" تجزئة_الاسماء_والارقام(C3,2)","v":"الاوائل"},{"$f":"IF(I3=\"\",\"\",IF(J3<=TODAY(),\"منتهي\",DATEDIF(TODAY(),J3,\"d\")))","v":"منتهي"},101,102,103,105,110,115,130,510]
[2,20,"افراد/ محمد جمال","محمد 2","سعودي",11100,"افراد","نهاري","2021-06-01","2021-06-09",150,{"$f":"COUNT(R4:LE4)","v":7},70,{"$f":"J4-I4","v":8},8400,{"$f":" تجزئة_الاسماء_والارقام(C4,2)","v":"محمد"},{"$f":"IF(I4=\"\",\"\",IF(J4<=TODAY(),\"منتهي\",DATEDIF(TODAY(),J4,\"d\")))","v":"منتهي"},202,304,506,708,910,1011,512]
[3,25,"شركة تليستار للسياحة","محمد 3","مصري",15,"شركة","نهاري","2021-06-04","2021-06-09","شركة",{"$f":"COUNT(R5:LE5)","v":11},110,{"$f":"J5-I5","v":5},"شركة","تليستار",{"$f":"IF(I5=\"\",\"\",IF(J5<=TODAY(),\"منتهي\",DATEDIF(TODAY(),J5,\"d\")))","v":"منتهي"},601,603,605,607,609,611,620,621,1012,1014,1015]
[4,30,"شركة اكرام تروزم","مجدي","مصري",20,"شركة","عطيه","2021-06-08","2021-06-09","شركة",{"$f":"COUNT(R6:LE6)","v":7},70,{"$f":"J6-I6","v":1},"شركة","اكرام","منتهي",401,402,403,405,1001,1005,1006]
[5,15,"شركة الاوائل","محمد 1","مصري",152365987125,"شركة","نهاري","2021-06-09","2021-06-11",100,{"$f":"COUNT(R7:LE7)","v":8},80,{"$f":"J7-I7","v":2},1600,"الاوائل",1,101,102,103,105,110,115,130,510]
[6,20,"افراد/ محمد جمال","محمد 2","سعودي",11100,"افراد","نهاري","2021-06-10","2021-06-15",150,{"$f":"COUNT(R8:LE8)","v":7},70,{"$f":"J8-I8","v":5},5250,"محمد",5,202,304,506,708,910,1011,512]
[7,25,"شركة تليستار للسياحة","محمد 3","مصري",15,"شركة","نهاري","2021-06-11","2021-06-17","شركة",{"$f":"COUNT(R9:LE9)","v":8},80,{"$f":"J9-I9","v":6},"شركة","تليستار",7,601,603,605,607,609,611,620,621]
[8,30,"شركة اكرام تروزم","مجدي","مصري",20,"شركة","عطيه","2021-06-20","2021-06-25","شركة",{"$f":"COUNT(R10:LE10)","v":7},70,{"$f":"J10-I10","v":5},"شركة","اكرام",15,401,402,403,405,1001,1005,1006]
[9,15,"شركة الاوائل","محمد 1","مصري",152365987125,"شركة","نهاري","2021-06-01","2021-06-08",100,{"$f":"COUNT(R11:LE11)","v":8},80,{"$f":"J11-I11","v":7},5600,"الاوائل","منتهي",101,102,103,105,110,115,130,510]
[10,20,"افراد/ محمد جمال","محمد 2","سعودي",11100,"افراد","نهاري","2021-06-11","2021-06-17",150,{"$f":"COUNT(R12:LE12)","v":7},70,{"$f":"J12-I12","v":6},6300,"محمد",7,202,304,506,708,910,1011,512]
[11,25,"شركة تليستار للسياحة","محمد 3","مصري",15,"شركة","نهاري","2021-06-04","2021-06-09","شركة",{"$f":"COUNT(R13:LE13)","v":8},80,{"$f":"J13-I13","v":5},"شركة","تليستار","منتهي",601,603,605,607,609,611,620,621]
[12,30,"شركة اكرام تروزم","مجدي","مصري",20,"شركة","عطيه","2021-06-08","2021-06-09","شركة",{"$f":"COUNT(R14:LE14)","v":7},70,{"$f":"J14-I14","v":1},"شركة","اكرام","منتهي",401,402,403,405,1001,1005,1006]
[13,null,null,null,null,null,null,null,null,null,null,{"$f":"COUNT(R15:LE15)","v":0},0,{"$f":"J15-I15","v":0},0,"",""]
[14,null,null,null,null,null,null,null,null,null,null,{"$f":"COUNT(R16:LE16)","v":0},{"$f":"IFERROR($G$1/$D$1*L16,\"0\")","v":0},{"$f":"J16-I16","v":0},{"$f":"IFERROR(K16*L16*N16,\"شركة\")","v":0},"",""]
[15,null,null,null,null,null,null,null,null,null,null,{"$f":"COUNT(R17:LE17)","v":0},{"$f":"IFERROR($G$1/$D$1*L17,\"0\")","v":0},{"$f":"J17-I17","v":0},{"$f":"IFERROR(K17*L17*N17,\"شركة\")","v":0},{"$f":" تجزئة_الاسماء_والارقام(C17,2)","v":""},{"$f":"IF(I17=\"\",\"\",IF(J17<=TODAY(),\"منتهي\",DATEDIF(TODAY(),J17,\"d\")))","v":""}]
[16,null,null,null,null,null,null,null,null,null,null,{"$f":"COUNT(R18:LE18)","v":0},{"$f":"IFERROR($G$1/$D$1*L18,\"0\")","v":0},{"$f":"J18-I18","v":0},{"$f":"IFERROR(K18*L18*N18,\"شركة\")","v":0},{"$f":" تجزئة_الاسماء_والارقام(C18,2)","v":""},{"$f":"IF(I18=\"\",\"\",IF(J18<=TODAY(),\"منتهي\",DATEDIF(TODAY(),J18,\"d\")))","v":""}]
[null,null,null,null,null,null,null,null,null,null,null,{"$f":"COUNT(R19:LE19)","v":0},{"$f":"IFERROR($G$1/$D$1*L19,\"0\")","v":0},{"$f":"J19-I19","v":0},{"$f":"IFERROR(K19*L19*N19,\"شركة\")","v":0},{"$f":" تجزئة_الاسماء_والارقام(C19,2)","v":""},{"$f":"IF(I19=\"\",\"\",IF(J19<=TODAY(),\"منتهي\",DATEDIF(TODAY(),J19,\"d\")))","v":""}]